fUSD/lending_fUSD_20251227
["ID","MTS","AMOUNT","RATE_DAILY","PERIOD"]
[399883462,1766805046002,-500.0,0.00030136,2]
[399883464,1766805046012,-500.0,0.00030136,2]
[399883465,1766805046022,-500.0,0.00030136,2]
[399883467,1766805046031,-500.0,0.00030136,2]
[399883470,1766805046043,-500.0,0.00030136,2]
[399883472,1766805046053,-500.0,0.00030136,2]
[399883474,1766805046063,-500.0,0.00030136,2]
[399883476,1766805046073,-500.0,0.00030136,2]
[399883478,1766805046082,-500.0,0.00030136,2]
[399883480,1766805046092,-500.0,0.00030136,2]
[399883482,1766805046102,-500.0,0.00030136,2]
[399883483,1766805046112,-500.0,0.00030136,2]
[399883485,1766805046122,-500.0,0.00030136,2]
[399883488,1766805046135,-500.0,0.00030136,2]
[399883490,1766805046145,-500.0,0.00030136,2]
[399883492,1766805046154,-500.0,0.00030136,2]
[399883494,1766805046164,-500.0,0.00030136,2]
[399883496,1766805046173,-500.0,0.00030136,2]
[399883498,1766805046183,-500.0,0.00030136,2]
[399883500,1766805046193,-500.0,0.00030136,2]
[399883502,1766805046203,-500.0,0.00030136,2]
[399883504,1766805046212,-500.0,0.00030136,2]
[399883506,1766805046222,-500.0,0.00030136,2]
[399883508,1766805046232,-500.0,0.00030136,2]
[399883510,1766805046242,-500.0,0.00030136,2]
[399883512,1766805046252,-500.0,0.00030136,2]
[399883514,1766805046262,-363.31635659,0.00030136,2]
[399883516,1766805046272,-560.82020755,0.00030136,2]
[399883518,1766805046283,-300.09666818,0.00030136,2]
[399883520,1766805046293,-500.0,0.00030136,2]
[399883522,1766805046303,-500.0,0.00030136,2]
[399883524,1766805046313,-500.0,0.00030136,2]
[399883526,1766805046323,-500.0,0.00030136,2]
[399883527,1766805046333,-500.0,0.00030136,2]
[399883528,1766805046343,-500.0,0.00030136,2]
[399883529,1766805046353,-513.92219119,0.00030136,2]
[399883530,1766805046362,-170.1,0.000302,30]
[399883531,1766805046373,-236.32482368,0.00030231,5]
[399883532,1766805046383,-1512.55936455,0.00030252,2]
[399883533,1766805046394,-201.0,0.000303,2]
[399883534,1766805046404,-903.0,0.000303,2]
[399883535,1766805046414,-978.0,0.000303,2]
[399883536,1766805046425,-305.0,0.000303,2]
[399883537,1766805046435,-173.0,0.00030447,14]
[399883538,1766805046446,-362.49,0.0003057,30]
[399883539,1766805046456,-151.5546717,0.00030665,2]
[399883540,1766805046466,-8786.5,0.00030796,2]
[399883541,1766805046477,-401.19111454,0.00031103,2]
[399883542,1766805046487,-344.91441206,0.00031103,2]
[399883543,1766805046496,-644.79446246,0.00031106,2]
[399883544,1766805046507,-340.22436893,0.0003127,2]
[399883545,1766805046528,-171.40540158,0.00031487,2]
[399883546,1766805046541,-151.0,0.00031504,2]
[399883547,1766805046552,-154.450161,0.00031667,7]
[399883548,1766805046563,-152.0,0.00031667,7]
[399883549,1766805046574,-152.0,0.00031667,7]
[399883550,1766805046584,-1257.0,0.00031667,7]
[399883551,1766805046594,-152.0,0.00031667,7]
[399883552,1766805046604,-152.0,0.00031667,7]
[399883553,1766805046615,-1257.0,0.00031667,7]
[399883554,1766805046625,-152.0,0.00031667,7]
[399883555,1766805046636,-1257.0,0.00031667,7]
[399883556,1766805046646,-152.0,0.00031667,7]
[399883557,1766805046656,-152.0,0.00031667,7]
[399883558,1766805046666,-152.0,0.00031667,7]
[399883559,1766805046676,-1257.0,0.00031667,7]
[399883560,1766805046687,-837.0,0.00031667,7]
[399883561,1766805046697,-152.0,0.00031667,7]
[399883562,1766805046707,-152.0,0.00031667,7]
[399883563,1766805046717,-1257.0,0.00031667,7]
[399883564,1766805046727,-152.0,0.00031667,7]
[399883565,1766805046740,-1257.0,0.00031667,7]
[399883566,1766805046751,-837.0,0.00031667,7]
[399883567,1766805046761,-152.0,0.00031667,7]
[399883568,1766805046771,-837.0,0.00031667,7]
[399883569,1766805046784,-1257.0,0.00031667,7]
[399883570,1766805046797,-837.0,0.00031667,7]
[399883571,1766805046807,-152.0,0.00031667,7]
[399883572,1766805046818,-1257.0,0.00031667,7]
[399883573,1766805046828,-154.0,0.00031667,7]
[399883574,1766805046838,-837.0,0.00031667,7]
[399883575,1766805046848,-152.0,0.00031667,7]
[399883576,1766805046857,-1257.0,0.00031667,7]
[399883577,1766805046867,-837.0,0.00031667,7]
[399883578,1766805046877,-152.0,0.00031667,7]
[399883579,1766805046887,-1257.0,0.00031667,7]
[399883580,1766805046897,-154.0,0.00031667,7]
[399883581,1766805046907,-1257.0,0.00031667,7]
[399883582,1766805046917,-837.0,0.00031667,7]
[399883583,1766805046927,-152.0,0.00031667,7]
[399883584,1766805046937,-154.0,0.00031667,7]
[399883585,1766805046947,-837.0,0.00031667,7]
[399883586,1766805046957,-154.0,0.00031667,7]
[399883587,1766805046966,-152.0,0.00031667,7]
[399883588,1766805046976,-1245.0,0.00031667,7]
[399883589,1766805046986,-152.0,0.00031667,7]
[399883590,1766805046996,-837.0,0.00031667,7]
[399883591,1766805047006,-154.0,0.00031667,7]
[399883592,1766805047016,-154.0,0.00031667,7]
[399883593,1766805047026,-837.0,0.00031667,7]
[399883594,1766805047037,-152.0,0.00031667,7]
[399883595,1766805047047,-640.89216105,0.00031667,7]
[399883596,1766805047057,-152.0,0.00031667,7]
[399883597,1766805047066,-154.0,0.00031667,7]
[399883598,1766805047077,-156.727251,0.00031667,7]
[399883599,1766805047088,-154.0,0.00031667,7]
[399883600,1766805047098,-154.0,0.00031667,7]
[399883601,1766805047108,-154.0,0.00031667,7]
[399883602,1766805047118,-154.0,0.00031667,7]
[399883603,1766805047128,-154.0,0.00031667,7]
[399883604,1766805047138,-154.0,0.00031667,7]
[399883605,1766805047148,-156.63625864,0.00031667,7]
[399883606,1766805047158,-2000.0,0.000318,2]
[399883607,1766805047168,-1000.0,0.000318,2]
[399883608,1766805047178,-403.95,0.00031837,2]
[399883609,1766805047189,-1298.76,0.00031837,2]
[399883610,1766805047199,-500.0,0.00031837,2]
[399883611,1766805047209,-337.78,0.00031837,2]
[399883612,1766805047219,-500.0,0.00031837,2]
[399883613,1766805047229,-451.8461754,0.00032312,2]
[399883614,1766805047239,-809.31550701,0.00032312,2]
[399883616,1766805047249,-169.46214065,0.00032471,2]
[399883617,1766805047258,-416.03518578,0.00032472,2]
[399883618,1766805047268,-357.6762453,0.00032472,2]
[399883619,1766805047278,-8786.5,0.00032847,3]
[399883620,1766805047288,-222.98587362,0.00032873,2]
[399883621,1766805047298,-500.0,0.00032877,7]
[399883622,1766805047308,-500.0,0.00032877,7]
[399883623,1766805047318,-500.0,0.00032877,7]
[399883624,1766805047329,-500.0,0.00032877,7]
[399883625,1766805047338,-500.0,0.00032877,7]
[399883626,1766805047352,-500.0,0.00032877,7]
[399883627,1766805047362,-500.0,0.00032877,7]
[399883628,1766805047371,-500.0,0.00032877,7]
[399883629,1766805047381,-500.0,0.00032877,7]
[399883630,1766805047391,-500.0,0.00032877,7]
[399883631,1766805047401,-500.0,0.00032877,7]
[399883632,1766805047411,-500.0,0.00032877,7]
[399883633,1766805047421,-500.0,0.00032877,7]
[399883634,1766805047431,-500.0,0.00032877,7]
[399883635,1766805047442,-500.0,0.00032877,7]
[399883636,1766805047452,-500.0,0.00032877,7]
[399883637,1766805047462,-500.0,0.00032877,7]
[399883638,1766805047473,-500.0,0.00032877,7]
[399883639,1766805047483,-500.0,0.00032877,7]
[399883640,1766805047494,-500.0,0.00032877,7]
[399883641,1766805047504,-500.0,0.00032877,7]
[399883642,1766805047514,-500.0,0.00032877,7]
[399883643,1766805047525,-500.0,0.00032877,7]
[399883644,1766805047535,-500.0,0.00032877,7]
[399883645,1766805047545,-500.0,0.00032877,7]
[399883646,1766805047555,-500.0,0.00032877,7]
[399883647,1766805047566,-500.0,0.00032877,7]
[399883648,1766805047576,-500.0,0.00032877,7]
[399883649,1766805047586,-500.0,0.00032877,7]
[399883650,1766805047596,-500.0,0.00032877,7]
[399883651,1766805047606,-500.0,0.00032877,7]
[399883652,1766805047615,-500.0,0.00032877,7]
[399883653,1766805047625,-500.0,0.00032877,7]
[399883654,1766805047635,-500.0,0.00032877,7]
[399883655,1766805047645,-500.0,0.00032877,7]
[399883656,1766805047655,-500.0,0.00032877,7]
[399883657,1766805047665,-500.0,0.00032877,7]
[399883658,1766805047674,-500.0,0.00032877,7]
[399883659,1766805047684,-500.0,0.00032877,7]
[399883660,1766805047694,-500.0,0.00032877,7]
[399883661,1766805047704,-500.0,0.00032877,7]
[399883662,1766805047714,-500.0,0.00032877,7]
[399883663,1766805047724,-500.0,0.00032877,7]
[399883664,1766805047734,-500.0,0.00032877,7]
[399883665,1766805047743,-500.0,0.00032877,7]
[399883666,1766805047753,-500.0,0.00032877,7]
[399883667,1766805047763,-500.0,0.00032877,7]
[399883668,1766805047773,-500.0,0.00032877,7]
[399883669,1766805047783,-541.20623147,0.00032877,7]
[399883670,1766805047793,-500.0,0.00032877,7]
[399883671,1766805047808,-500.0,0.00032877,7]
[399883672,1766805047818,-500.0,0.00032877,7]
[399883673,1766805047827,-500.0,0.00032877,7]
[399883674,1766805047837,-500.0,0.00032877,7]
[399883675,1766805047847,-500.0,0.00032877,7]
[399883676,1766805047856,-500.0,0.00032877,7]
[399883677,1766805047866,-500.0,0.00032877,7]
[399883678,1766805047876,-500.0,0.00032877,7]
[399883679,1766805047886,-500.0,0.00032877,7]
[399883680,1766805047896,-500.0,0.00032877,7]
[399883681,1766805047906,-500.0,0.00032877,7]
[399883682,1766805047915,-500.0,0.00032877,7]
[399883683,1766805047926,-500.0,0.00032877,7]
[399883684,1766805047935,-500.0,0.00032877,7]
[399883685,1766805047945,-500.0,0.00032877,7]
[399883686,1766805047955,-500.0,0.00032877,7]
[399883687,1766805047965,-500.0,0.00032877,7]
[399883688,1766805047975,-500.0,0.00032877,7]
[399883689,1766805047985,-500.0,0.00032877,7]
[399883690,1766805047995,-500.0,0.00032877,7]
[399883691,1766805048005,-500.0,0.00032877,7]
[399883692,1766805048015,-500.0,0.00032877,7]
[399883693,1766805048025,-500.0,0.00032877,7]
[399883694,1766805048034,-500.0,0.00032877,7]
[399883695,1766805048044,-500.0,0.00032877,7]
[399883696,1766805048054,-300.0,0.00032877,7]
[399883697,1766805048064,-500.0,0.00032877,7]
[399883698,1766805048074,-500.0,0.00032877,7]
[399883699,1766805048084,-500.0,0.00032877,7]
[399883700,1766805048094,-150.0,0.00032877,2]
[399883701,1766805048103,-150.0,0.00032877,2]
[399883702,1766805048114,-150.0,0.00032877,2]
[399883703,1766805048125,-150.0,0.00032877,2]
[399883704,1766805048135,-153.74951027,0.00032877,2]
[399883705,1766805048146,-391.91,0.000329,14]
[399883706,1766805048156,-1849.68,0.000329,14]
[399883707,1766805048272,-15671.56,0.000329,14]
[399883708,1766805048282,-8378.74,0.000329,2]
[399883709,1766805048291,-150.0,0.00033,14]
[399883710,1766805048301,-1512.55936455,0.00033135,2]
[399883711,1766805048310,-362.47,0.00033165,2]
[399883712,1766805048319,-170.1,0.000333,30]
[399883713,1766805048330,-156.26,0.000333,14]
[399883714,1766805048340,-431.42848765,0.00033841,2]
[399883715,1766805048350,-380.60488363,0.00033841,2]
[399883716,1766805048361,-676.45227174,0.00033845,2]
[399883717,1766805048371,-211.0,0.00034,120]
[399883718,1766805048382,-210.0,0.000343,120]
[399883719,1766805048392,-465.93,0.00034344,7]
[399883720,1766805048403,-362.49,0.00034895,30]
[399883721,1766805048413,-8786.5,0.00034898,4]
[399883722,1766805048423,-8378.74,0.000349,2]
[399883723,1766805048433,-1001.0,0.00035,7]
[399883724,1766805048442,-179.06,0.00035,30]
[399883725,1766805048452,-659.51,0.00035006,2]
[399883726,1766805048461,-171.40540158,0.00035194,2]
[399883727,1766805048471,-2000.0,0.000355,2]
[399883728,1766805048481,-1000.0,0.000355,2]
[399883729,1766805048491,-999.0,0.00035616,120]
[399883730,1766805048501,-500.0,0.00035616,7]
[399883731,1766805048511,-500.0,0.00035616,7]
[399883732,1766805048521,-500.0,0.00035616,7]
[399883733,1766805048531,-500.0,0.00035616,7]
[399883734,1766805048541,-500.0,0.00035616,7]
[399883735,1766805048550,-500.0,0.00035616,7]
[399883736,1766805048560,-500.0,0.00035616,7]
[399883737,1766805048570,-500.0,0.00035616,7]
[399883738,1766805048580,-500.0,0.00035616,7]
[399883739,1766805048591,-633.81799411,0.00035616,7]
[399883740,1766805048600,-500.0,0.00035616,7]
[399883741,1766805048609,-500.0,0.00035616,7]
[399883742,1766805048619,-500.0,0.00035616,7]
[399883743,1766805048629,-500.0,0.00035616,7]
[399883744,1766805048639,-500.0,0.00035616,7]
[399883745,1766805048648,-500.0,0.00035616,7]
[399883746,1766805048658,-500.0,0.00035616,7]
[399883747,1766805048667,-500.0,0.00035616,7]
[399883748,1766805048677,-500.0,0.00035616,7]
[399883749,1766805048687,-500.0,0.00035616,7]
[399883750,1766805048697,-151.0,0.00035616,31]
[399883751,1766805048706,-153.039098,0.00035616,31]
[399883752,1766805048715,-156.313272,0.00035616,31]
[399883753,1766805048725,-165.632423,0.00035616,31]
[399883754,1766805048736,-151.65559,0.00035616,31]
[399883755,1766805048745,-1512.55936455,0.00036017,2]
[399883756,1766805048755,-8378.74,0.000361,2]
[399883757,1766805048765,-999.0,0.00036712,120]
[399883758,1766805048776,-8786.5,0.00036949,5]
[399883759,1766805048785,-239.44339534,0.00037083,7]
[399883760,1766805048795,-264.966,0.00037291,48]
[399883761,1766805048804,-301.04,0.00037334,2]
[399883762,1766805048814,-150.0,0.00037334,2]
[399883763,1766805048823,-150.0,0.00037334,2]
[399883764,1766805048833,-150.0,0.00037334,2]
[399883765,1766805048842,-1100.0,0.00037356,14]
[399883766,1766805048852,-800.0,0.00037356,14]
[399883767,1766805048861,-500.0,0.00037356,14]
[399883768,1766805048871,-999.0,0.00037808,120]
[399883769,1766805048880,-6612.73286578,0.0003783,2]
[399883770,1766805048890,-170.82,0.00037836,2]
[399883771,1766805048899,-391.91,0.000379,14]
[399883772,1766805048909,-1849.68,0.000379,14]
[399883773,1766805048919,-500.0,0.00038,30]
[399883774,1766805048929,-502.83967289,0.00038,30]
[399883775,1766805048938,-300.0,0.00038142,2]
[399883776,1766805048947,-150.0,0.00038156,2]
[399883777,1766805048957,-150.0,0.00038156,2]
[399883778,1766805048970,-997.0,0.00038168,20]
[399883779,1766805048982,-1100.0,0.00038178,14]
[399883780,1766805048991,-800.0,0.00038178,14]
[399883781,1766805049001,-500.0,0.00038178,14]
[399883782,1766805049011,-8378.74,0.000382,2]
[399883783,1766805049020,-300.0,0.00038314,2]
[399883784,1766805049031,-975.95366001,0.00038356,120]
[399883785,1766805049042,-504.0,0.00038356,2]
[399883786,1766805049051,-300.0,0.00038357,2]
[399883787,1766805049062,-304.19847285,0.00038392,2]
[399883788,1766805049072,-300.0,0.00038392,2]
[399883789,1766805049081,-300.0,0.00038392,2]
[399883790,1766805049091,-367.89553156,0.00038392,2]
[399883791,1766805049100,-300.0,0.00038392,2]
[399883792,1766805049110,-300.0,0.00038392,2]
[399883793,1766805049120,-303.41540829,0.00038392,2]
[399883794,1766805049130,-300.0,0.00038392,2]
[399883795,1766805049140,-395.22582581,0.00038392,2]
[399883796,1766805049150,-300.0,0.00038392,2]
[399883797,1766805049159,-300.0,0.00038392,2]
[399883798,1766805049169,-300.0,0.00038392,2]
[399883799,1766805049178,-595.09007448,0.00038392,2]
[399883800,1766805049188,-363.99471825,0.00038392,2]
[399883801,1766805049198,-300.0,0.00038392,2]
[399883802,1766805049207,-300.0,0.00038392,2]
[399883803,1766805049217,-300.0,0.00038392,2]
[399883804,1766805049226,-300.0,0.00038392,2]
[399883805,1766805049237,-300.0,0.00038392,2]
[399883806,1766805049246,-300.0,0.00038392,2]
[399883807,1766805049255,-303.03037179,0.00038392,2]
[399883808,1766805049265,-300.0,0.00038392,2]
[399883809,1766805049274,-577.27091358,0.00038392,2]
[399883810,1766805049284,-300.0,0.00038392,2]
[399883811,1766805049294,-1082.41756512,0.00038392,2]
[399883812,1766805049303,-323.27977376,0.00038392,2]
[399883813,1766805049313,-304.19847285,0.00038392,2]
[399883814,1766805049324,-300.0,0.00038392,2]
[399883815,1766805049334,-300.0,0.00038392,2]
[399883816,1766805049343,-367.89553156,0.00038392,2]
[399883817,1766805049354,-300.0,0.00038392,2]
[399883818,1766805049364,-300.0,0.00038392,2]
[399883819,1766805049374,-303.41540829,0.00038392,2]
[399883820,1766805049383,-300.0,0.00038392,2]
[399883821,1766805049393,-300.0,0.00038392,2]
[399883822,1766805049403,-300.0,0.00038392,2]
[399883823,1766805049412,-300.0,0.00038392,2]
[399883824,1766805049422,-595.09007448,0.00038392,2]
[399883825,1766805049432,-363.99471825,0.00038392,2]
[399883826,1766805049442,-300.0,0.00038392,2]
[399883827,1766805049451,-300.0,0.00038392,2]
[399883828,1766805049461,-300.0,0.00038392,2]
[399883829,1766805049471,-300.0,0.00038392,2]
[399883830,1766805049480,-306.28204119,0.00038392,2]
[399883831,1766805049490,-300.0,0.00038392,2]
[399883832,1766805049499,-303.03037179,0.00038392,2]
[399883833,1766805049509,-300.0,0.00038392,2]
[399883834,1766805049520,-577.27091358,0.00038392,2]
[399883835,1766805049530,-300.0,0.00038392,2]
[399883836,1766805049541,-1082.41756512,0.00038392,2]
[399883837,1766805049550,-304.19847285,0.00038392,2]
[399883838,1766805049559,-300.0,0.00038392,2]
[399883839,1766805049569,-300.0,0.00038392,2]
[399883840,1766805049579,-367.89553156,0.00038392,2]
[399883841,1766805049588,-319.85277355,0.00038392,2]
[399883842,1766805049597,-300.0,0.00038392,2]
[399883843,1766805049607,-303.41540829,0.00038392,2]
[399883844,1766805049616,-530.1433059,0.00038392,2]
[399883845,1766805049626,-366.31384227,0.00038392,2]
[399883846,1766805049635,-300.0,0.00038392,2]
[399883847,1766805049645,-301.12170435,0.00038392,2]
[399883848,1766805049654,-595.09007448,0.00038392,2]
[399883849,1766805049664,-363.99471825,0.00038392,2]
[399883850,1766805049673,-300.0,0.00038392,2]
[399883851,1766805049682,-300.0,0.00038392,2]
[399883852,1766805049691,-300.0,0.00038392,2]
[399883853,1766805049701,-300.0,0.00038392,2]
[399883854,1766805049711,-300.0,0.00038392,2]
[399883855,1766805049720,-303.03037179,0.00038392,2]
[399883856,1766805049729,-318.56909642,0.00038392,2]
[399883857,1766805049740,-577.27091358,0.00038392,2]
[399883858,1766805049750,-358.00069724,0.00038392,2]
[399883859,1766805049760,-1082.41756512,0.00038392,2]
[399883860,1766805049770,-304.19847285,0.00038392,2]
[399883861,1766805049780,-300.0,0.00038392,2]
[399883862,1766805049790,-300.0,0.00038392,2]
[399883863,1766805049799,-367.89553156,0.00038392,2]
[399883864,1766805049809,-300.0,0.00038392,2]
[399883865,1766805049819,-303.41540829,0.00038392,2]
[399883866,1766805049828,-427.7612586,0.00038392,2]
[399883867,1766805049837,-595.09007448,0.00038392,2]
[399883868,1766805049847,-363.99471825,0.00038392,2]
[399883869,1766805049856,-300.0,0.00038392,2]
[399883870,1766805049865,-300.0,0.00038392,2]
[399883871,1766805049875,-300.0,0.00038392,2]
[399883872,1766805049885,-300.0,0.00038392,2]
[399883873,1766805049894,-300.0,0.00038392,2]
[399883874,1766805049905,-303.03037179,0.00038392,2]
[399883875,1766805049915,-577.27091358,0.00038392,2]
[399883876,1766805049924,-1082.41756512,0.00038392,2]
[399883877,1766805049934,-304.19847285,0.00038392,2]
[399883878,1766805049943,-300.0,0.00038392,2]
[399883879,1766805049953,-300.0,0.00038392,2]
[399883880,1766805049963,-367.89553156,0.00038392,2]
[399883881,1766805049973,-300.0,0.00038392,2]
[399883882,1766805049983,-303.41540829,0.00038392,2]
[399883883,1766805049993,-595.09007448,0.00038392,2]
[399883884,1766805050002,-363.99471825,0.00038392,2]
[399883885,1766805050012,-300.0,0.00038392,2]
[399883886,1766805050022,-300.0,0.00038392,2]
[399883887,1766805050032,-300.0,0.00038392,2]
[399883888,1766805050041,-300.0,0.00038392,2]
[399883889,1766805050051,-300.0,0.00038392,2]
[399883890,1766805050061,-303.03037179,0.00038392,2]
[399883891,1766805050074,-577.27091358,0.00038392,2]
[399883892,1766805050084,-1082.41756512,0.00038392,2]
[399883893,1766805050093,-304.19847285,0.00038392,2]
[399883894,1766805050104,-300.0,0.00038392,2]
[399883895,1766805050114,-300.0,0.00038392,2]
[399883896,1766805050124,-367.89553156,0.00038392,2]
[399883897,1766805050134,-544.39024213,0.00038392,2]
[399883898,1766805050149,-303.41540829,0.00038392,2]
[399883899,1766805050160,-595.09007448,0.00038392,2]
[399883900,1766805050170,-363.99471825,0.00038392,2]
[399883901,1766805050180,-300.0,0.00038392,2]
[399883902,1766805050190,-300.0,0.00038392,2]
[399883903,1766805050206,-335.1530364,0.00038392,2]
[399883904,1766805050226,-504.99371641,0.00038392,2]
[399883905,1766805050236,-300.0,0.00038392,2]
[399883906,1766805050245,-303.03037179,0.00038392,2]
[399883907,1766805050255,-577.27091358,0.00038392,2]
[399883908,1766805050268,-1082.41756512,0.00038392,2]
[399883909,1766805050277,-304.19847285,0.00038392,2]
[399883910,1766805050292,-300.0,0.00038392,2]
[399883911,1766805050303,-318.46029645,0.00038392,2]
[399883912,1766805050313,-367.89553156,0.00038392,2]
[399883913,1766805050323,-303.41540829,0.00038392,2]
[399883914,1766805050332,-595.09007448,0.00038392,2]
[399883915,1766805050342,-363.99471825,0.00038392,2]
[399883916,1766805050352,-300.0,0.00038392,2]
[399883917,1766805050362,-306.20654856,0.00038392,2]
[399883918,1766805050371,-300.0,0.00038392,2]
[399883919,1766805050381,-303.03037179,0.00038392,2]
[399883920,1766805050392,-577.27091358,0.00038392,2]
[399883921,1766805050402,-1082.41756512,0.00038392,2]
[399883922,1766805050412,-304.19847285,0.00038392,2]
[399883923,1766805050421,-300.0,0.00038392,2]
[399883924,1766805050431,-367.89553156,0.00038392,2]
[399883925,1766805050441,-303.41540829,0.00038392,2]
[399883926,1766805050451,-595.09007448,0.00038392,2]
[399883927,1766805050461,-363.99471825,0.00038392,2]
[399883928,1766805050471,-300.0,0.00038392,2]
[399883929,1766805050482,-300.0,0.00038392,2]
[399883930,1766805050492,-303.03037179,0.00038392,2]
[399883931,1766805050501,-577.27091358,0.00038392,2]
[399883932,1766805050511,-1082.41756512,0.00038392,2]
[399883933,1766805050522,-300.0,0.00038413,2]
[399883934,1766805050531,-300.0,0.00038462,2]
[399883935,1766805050541,-2001.16927018,0.000385,20]
[399883936,1766805050551,-617465.9625568,0.000385,30]
[399883937,1766805050561,-300.0,0.00038537,2]
[399883938,1766805050570,-303.86841074,0.00038554,2]
[399883939,1766805050580,-997.0,0.00038561,20]
[399883940,1766805050589,-170.82,0.00038655,2]
[399883941,1766805050599,-300.0,0.00038655,2]
[399883942,1766805050609,-200.0,0.00038688,20]
[399883943,1766805050619,-300.0,0.00038741,2]
[399883944,1766805050628,-300.0,0.00038778,2]
[399883945,1766805050638,-2000.0,0.00038805,3]
[399883946,1766805050648,-2001.7461,0.00038805,3]
[399883947,1766805050658,-150.0,0.0003889,120]
[399883948,1766805050667,-328.96293172,0.000389,120]
[399883949,1766805050676,-169.46214065,0.000389,2]
[399883950,1766805050686,-179.24849084,0.000389,2]
[399883951,1766805050695,-1512.55936455,0.000389,2]
[399883952,1766805050704,-1094.10861912,0.000389,2]
[399883953,1766805050714,-171.40540158,0.000389,2]
[399883954,1766805050723,-161.95652614,0.000389,2]
[399883955,1766805050733,-160.26345252,0.000389,2]
[399883956,1766805050745,-999.0,0.00038904,120]
[399883957,1766805050754,-7031.04,0.00038904,2]
[399883958,1766805050763,-300.0,0.00038954,2]
[399883959,1766805050773,-997.0,0.00038955,20]
[399883960,1766805050782,-170.82,0.00038984,2]
[399883961,1766805050791,-891.97,0.00038984,2]
[399883962,1766805050801,-1220.66,0.00038984,2]
[399883963,1766805050810,-353.18,0.00038984,2]
[399883964,1766805050819,-1241.91,0.00038984,2]
[399883965,1766805050829,-151.19,0.00038984,2]
[399883966,1766805050838,-554.37,0.00038984,2]
[399883967,1766805050848,-150.0,0.00038984,2]
[399883968,1766805050857,-1220.66,0.00038984,2]
[399883969,1766805050867,-339.54,0.00038984,2]
[399883970,1766805050876,-150.0,0.00038984,2]
[399883971,1766805050886,-1220.66,0.00038984,2]
[399883972,1766805050907,-150.0,0.00038984,2]
[399883973,1766805050923,-1220.66,0.00038984,2]
[399883974,1766805050933,-170.82,0.00038984,2]
[399883975,1766805050941,-300.0,0.00038984,2]
[399883976,1766805050951,-2437.47,0.00038984,2]
[399883977,1766805050960,-170.82,0.00038984,2]
[399883978,1766805050970,-151.12,0.00038984,2]
[399883979,1766805050979,-170.82,0.00038984,2]
[399883980,1766805050988,-170.82,0.00038984,2]
[399883981,1766805050997,-170.82,0.00038984,2]
[399883982,1766805051006,-170.82,0.00038984,2]
[399883983,1766805051015,-170.82,0.00038984,2]
[399883984,1766805051025,-170.82,0.00038984,2]
[399883985,1766805051034,-170.82,0.00038984,2]
[399883986,1766805051043,-170.82,0.00038984,2]
[399883987,1766805051052,-228.58211956,0.0003899,2]
[399883988,1766805051061,-1143.09212103,0.00038999,30]
[399883989,1766805051070,-1143.09212103,0.00038999,30]
[399883990,1766805051080,-1143.09212103,0.00038999,30]
[399883991,1766805051089,-1143.09212103,0.00038999,30]
[399883992,1766805051098,-1143.09212103,0.00038999,30]
[399883993,1766805051107,-403.95,0.00038999,2]
[399883994,1766805051116,-403.95,0.00038999,2]